Cogmind - Beta 16.1 @@@ ROGUE MODE // 2026.03.28 @ 16:09:33 Player: Skrub Result: Smashed by cave-in Performance ------------- Evolutions (0) 0 Regions Visited (2) 400 Robots Destroyed (14) 70 Value Destroyed (418) 418 Prototype IDs (0) 0 Alien Tech Used (0) 0 Bonus (0) 0 TOTAL SCORE: 888 Bonus ------- None Cogmind --------- Core Integrity 0/250 Matter 257/300 Energy 95/125 System Corruption 2% Temperature Cool (0) Movement Treading (160) Location -10/Subcaves Parts ------- > --- POWER (1) -------- Light Ion Engine > --- PROPULSION (2) --- Light Treads Light Treads > --- UTILITY (2) ------ (None) > --- WEAPON (2) ------- Subdweller Beam Cannon > --- INVENTORY (5) ---- Aluminum Leg Medium Laser Light Assault Rifle Light Cannon Peak State ------------ > --- POWER ------------ Light Ion Engine > --- PROPULSION ------- Wheel Compact Wheel > --- UTILITY ---------- Small Storage Unit > --- WEAPON ----------- EM Pulse Gun EM Pulse Gun > --- INVENTORY -------- Light Ion Engine [Rating: 6] Favorites ----------- Power Light Ion Engine Engine Light Ion Engine Propulsion Compact Wheel Treads Light Treads Leg Aluminum Leg Wheel Compact Wheel Utility Small Storage Unit Storage Small Storage Unit Weapon Light Cannon Energy Gun EM Pulse Gun Energy Cannon Subdweller Beam Cannon Ballistic Gun Light Assault Rifle Ballistic Cannon Light Cannon Special Weapon Welding Torch Build | -11 -10 -10 ------- Run | Yrd Mat Sub Slots Evolved . | . . . Power . | . . . Propulsion . | . . . Utility . | . . . Weapon . | . . . Parts Attached 23 | 6 10 7 Power 4 | 1 3 . Engine 4 | 1 3 . Core . | . . . Reactor . | . . . Propulsion 8 | 2 2 4 Treads 2 | . . 2 Leg 1 | . . 1 Wheel 5 | 2 2 1 Hover . | . . . Flight . | . . . Utility 1 | 1 . . Device . | . . . Storage 1 | 1 . . Processor . | . . . Hackware . | . . . Protection . | . . . Artifact . | . . . Weapon 10 | 2 5 3 Energy Gun 4 | 2 1 1 Energy Cannon 1 | . . 1 Ballistic Gun 2 | . 2 . Ballistic Cannon 2 | . 2 . Launcher . | . . . Special Weapon 1 | . . 1 Impact Weapon . | . . . Slashing Weapon . | . . . Piercing Weapon . | . . . Special Melee Weapon . | . . . Unidentified Prototypes . | . . . Parts Lost 13 | . 7 6 Power 3 | . 3 . Propulsion 5 | . 2 3 Utility 1 | . . 1 Weapon 4 | . 2 2 Highest Loss Streak 5 | . 2 5 To Critical Strikes . | . . . Average Backups 5 | 1 5 6 Power . | . . . Propulsion 2 | . 2 2 Utility . | . . . Weapon 1 | . 1 2 Tool/Special . | . . . Unused Backups 1 | . . 1 Power . | . . . Propulsion 1 | . . 1 Utility . | . . . Weapon . | . . . Tool/Special . | . . . Average Slot Usage (%) 70 | . 69 76 Engine 8 | . 7 14 Treads 1 | . . 8 Wheel 19 | . 19 16 Storage 12 | . 14 8 Energy Gun 3 | . 3 2 Energy Cannon 1 | . . 5 Ballistic Gun 13 | . 17 . Ballistic Cannon 9 | . 6 18 Peak Build Rating 6 | 6 6 6 Average Rating 5 | 4 4 5 On Entrance 4 | . 6 6 Avg Prop Armor Cover (%) . | . . . Naked Turns . | . . . Heaviest Build 14 | 12 14 14 Greatest Support 40 | 26 32 40 Greatest Overweight (x) 4 | . . 4 Average Overweight (x) . | . . . Largest Inventory Capacity 8 | 8 8 8 Average Capacity 7 | 6 8 6 Most Carried 8 | 4 8 8 Average Carried 5 | 1 5 6 Final Capacity 8 | 8 8 5 Final Carried 8 | 4 8 4 Class Distribution -------------------- 100% | Mutant Dominant Class ---------------- Mutant | -10/Materials Mutant | -10/Subcaves Resources | -11 -10 -10 ----------- Run | Yrd Mat Sub Matter Collected 519 | 139 310 70 Remotely . | . . . Salvage Created 412 | . 332 80 Parts 24 | . 15 9 Haulers Intercepted . | . . . Recyclers Shooed . | . . . Parts Field Recycled . | . . . Retrieved Matter . | . . . Parts Self-Destructed 10 | . . 10 Prevented . | . . . Parts Restored . | . . . Kills | -11 -10 -10 ------- Run | Yrd Mat Sub Combat Hostiles Destroyed 14 | . 10 4 Guns 8 | . 8 . Cannons 5 | . 1 4 AOE 1 | . 1 . Classes Destroyed 3 | . 3 . Swarmer 5 | . 3 2 Grunt 8 | . 6 2 Subdweller 1 | . 1 . Best Kill Streak 5 | . 5 4 Combat Bots Only 5 | . 5 4 Max Kills in Single Turn 1 | . 1 1 Gunslinging . | . . . Exploded 1 | . 1 . Melee . | . . . Uniques/NPCs Destroyed . | . . . Combat | -11 -10 -10 -------- Run | Yrd Mat Sub Hostile Shots Fired 129 | . 42 87 Missed 36 | . 8 28 Hits 93 | . 34 59 Projectile 93 | . 34 59 Critical Strikes 2 | . . 2 Damage Taken 1474 | . 635 839 Core 278 | . 76 202 Absorbed by Shields . | . . . Core Remaining (%) 100 | 100 . . Volleys Fired 52 | . 37 15 Largest 2 | . 2 2 Hottest 110 | . 80 110 Shots Fired 97 | . 68 29 Gun 62 | . 62 . Cannon 30 | . 6 24 Launcher . | . . . Special 5 | . . 5 Kinetic 67 | . 50 17 Thermal 12 | . . 12 Explosive . | . . . Electromagnetic 18 | . 18 . Robot Hit Streak 9 | . 9 3 Robot Miss Streak 7 | . 7 4 Penetration Max . | . . . Secondary Targets . | . . . Shots Hit Robots 47 | . 40 7 Core Hits 22 | . 17 5 Critical Kills . | . . . Critical Parts Destroyed . | . . . Critical Strikes . | . . . Melee Attacks . | . . . Impact . | . . . Slashing . | . . . Piercing . | . . . Sneak Attacks . | . . . Combat Hostiles . | . . . Follow-up Attacks . | . . . Damage Inflicted 626 | . 468 158 Guns 366 | . 366 . Cannons 228 | . 70 158 Explosions 32 | . 32 . Melee . | . . . Ramming . | . . . Kinetic 473 | . 315 158 Thermal 32 | . 32 . Explosive . | . . . Electromagnetic 121 | . 121 . Impact . | . . . Slashing . | . . . Piercing . | . . . Highest Corruption . | . . . Average Corruption . | . . . Corruption Purged . | . . . Corruption Blocked . | . . . Overload Shots . | . . . Overflow Damage 112 | . 112 . Projectiles . | . . . Explosions 112 | . 112 . Melee . | . . . Knockbacks 3 | . . 3 Impact . | . . . Kinetic 3 | . . 3 Secondary . | . . . Self-Inflicted Damage 168 | . 168 . Shots 2 | . 2 . Rammed . | . . . Targets Rammed . | . . . Kicked . | . . . Crushed . | . . . Highest Temperature 109 | . 109 2 Average Temperature 38 | . 39 2 Received Heat Transfer 372 | . 153 219 Siege Activations . | . . . Martial Activations . | . . . Shielding Activations . | . . . Robots Disrupted . | . . . Combat Hostiles . | . . . Robots Corrupted . | . . . Combat Hostiles . | . . . Parts Fried . | . . . Impact Corruptions . | . . . Robots Melted . | . . . Combat Hostiles . | . . . Parts Melted . | . . . Heat Transferred 50 | . 50 . Parts Sabotaged . | . . . Parts Stolen . | . . . Parts Stripped . | . . . Power Chain Reactions 1 | . 1 . Alert | -11 -10 -10 ------- Run | Yrd Mat Sub Maximum Alert Level . | . . . Low Security (%) 100 | 100 100 . Level 1 . | . . . Level 2 . | . . . Level 3 . | . . . Level 4 . | . . . Level 5 . | . . . High Security . | . . . Max Security . | . . . Peak Influence 125 | . 125 . Initial . | . . . Average 26 | . 27 . Influence Increases 459 | . 309 150 Destroy 0b10 Robot/C 260 | . 180 80 Destroy Leader 50 | . 40 10 Successful Hack 13 | . 13 . Disable Machine 45 | . 45 . Destroy Structure 16 | . 16 . Lose Combat Pursuer 75 | . 15 60 Influence Decreases 439 | . 309 130 Time Decay 339 | . 259 80 Lost Part 100 | . 50 50 Squads Dispatched 4 | . 4 . Investigation 3 | . 3 . Extermination . | . . . Reinforcement 1 | . 1 . Assault . | . . . Garrison . | . . . Intercept . | . . . Searches Triggered . | . . . Construction Impeded . | . . . Haulers Reinforced . | . . . Active Scanning Responses . | . . . Cargo Convoy Interrupts . | . . . Stealth | -11 -10 -10 --------- Run | Yrd Mat Sub Distress Signals 1 | . 1 . Communications Jammed . | . . . Distress Signals . | . . . Times Spotted 30 | . 22 8 Peak Tracking Total 8 | . 3 8 Tactical Retreats 3 | . 1 2 Traps | -11 -10 -10 ------- Run | Yrd Mat Sub Traps Triggered 5 | . 5 . Indirectly . | . . . Trap Hack Attempts . | . . . Triggered . | . . . Disarmed . | . . . Reprogrammed . | . . . Reused . | . . . Traps Extracted . | . . . Installed . | . . . Triggered . | . . . Machines | -11 -10 -10 ---------- Run | Yrd Mat Sub Machines Disabled 3 | . 3 . Max in Single Turn 2 | . 2 . Machines Repaired . | . . . Machines Dismantled . | . . . Machines Sabotaged . | . . . Overloaded Fab Kills . | . . . Hacking | -11 -10 -10 --------- Run | Yrd Mat Sub Machines Accessed 8 | . 8 . Terminals 8 | . 8 . Fabricators . | . . . Repair Stations . | . . . Recycling Units . | . . . Scanalyzers . | . . . Garrison Access . | . . . Total Hacks 23 | . 23 . Successful 12 | . 12 . Failed 11 | . 11 . Catastrophic 1 | . 1 . Database Lockouts . | . . . Manual 22 | . 22 . Terminals 23 | . 23 . Fabricators . | . . . Repair Stations . | . . . Recycling Units . | . . . Scanalyzers . | . . . Garrison Access . | . . . Terminal Hacks 2 | . 2 . Terminal Index 1 | . 1 . Hauler Manifests 1 | . 1 . Fabricator Hacks . | . . . Repair Station Hacks . | . . . Recycling Unit Hacks . | . . . Scanalyzer . | . . . Garrison Access Hacks . | . . . Unauthorized Hacks 10 | . 10 . Terminals 10 | . 10 . Botnet 8 | . 8 . Skim 2 | . 2 . Fabricators . | . . . Repair Stations . | . . . Recycling Units . | . . . Scanalyzers . | . . . Garrison Access . | . . . Data Cores Recovered . | . . . Used . | . . . Hacking Detections 7 | . 7 . Full Trace Events . | . . . Feedback Events . | . . . Feedback Blocked . | . . . Robot Schematics Acquired . | . . . Robots Built . | . . . Authchips . | . . . Time . | . . . Total Robot Build Rating . | . . . Part Schematics Acquired . | . . . Parts Built . | . . . Authchips . | . . . Time . | . . . Total Part Build Rating . | . . . Part Studies Acquired . | . . . Parts Repaired . | . . . Time . | . . . Parts Recycled . | . . . Recycled Matter . | . . . Retrieved Matter . | . . . Retrieved Components . | . . . Parts Scanalyzed . | . . . Part Schematics Acquired . | . . . Parts Damaged . | . . . Bothacking | -11 -10 -10 ------------ Run | Yrd Mat Sub Used RIF Installer . | . . . Robots Hacked . | . . . Non-combat . | . . . Combat . | . . . Robot Hacks Applied . | . . . Relay Couplers Released . | . . . Fabnet Peak Effective % . | . . . Robots Rewired . | . . . Allies Hacked . | . . . Hacks Repelled . | . . . Allies | -11 -10 -10 -------- Run | Yrd Mat Sub Total Allies . | . . . Largest Group . | . . . Highest-Rated Group . | . . . Highest-Rated Ally . | . . . Total Orders . | . . . Ally Attacks . | . . . Total Damage . | . . . Kills . | . . . Allies Corrupted . | . . . Allies Melted . | . . . Intel | -11 -10 -10 ------- Run | Yrd Mat Sub Active Infowar (turns) . | . . . Robot Analysis Total . | . . . Derelict Logs Recovered . | . . . Drone Launches . | . . . Drone Recoveries . | . . . Exploration | -11 -10 -10 ------------- Run | Yrd Mat Sub Turns Passed 1324 | 59 984 281 Spaces Moved 962 | 43 714 205 Core 6 | 4 . 2 Treads 40 | . . 40 Legs 3 | . . 3 Wheels 913 | 39 714 160 Hover . | . . . Flight . | . . . Fastest Speed 50 | 50 90 90 Average Speed 97 | 85 95 107 Slowest Speed 250 | 90 100 250 Overloaded Moves . | . . . Propulsion Burnouts . | . . . Robots Hopped . | . . . Potential Cave-ins . | . . . Cave-ins Triggered 1 | . . 1 Exploration Rate (%) 39 | 3 95 21 Regions Visited 2 Branch Regions 1 Pre-discovered Areas . | . . . Known Exits Taken . | . . . Unknown Exits Taken 2 | 1 1 . Scrap Searched . | . . . Spaces Dug 2 | . . 2 Terrain Destroyed 18 | . 16 2 Melee . | . . . Projectile 2 | . . 2 AOE 16 | . 16 . Terrain Rammed . | . . . Walls Destroyed . | . . . Machines Disabled . | . . . Actions | -11 -10 -10 --------- Run | Yrd Mat Sub Total 1252 | 61 952 239 Wait 200 | 9 184 7 Move 960 | 42 713 205 Hop . | . . . Pick Up 10 | 4 5 1 Fast Attach 16 | 6 8 2 Attach 6 | . 2 4 Detach 3 | . 1 2 Swap 1 | . . 1 Drop 4 | . 2 2 Fire 52 | . 37 15 Melee . | . . . Ram . | . . . Kick . | . . . Crush . | . . . Escape Stasis . | . . . Rewire . | . . . Trap . | . . . Miscellaneous . | . . . Route ------- -11/Scrapyard -10/Materials (discovered 5 exits: [*Mat x3] / [*Min] / [*Sub]) -10/Subcaves (discovered 1 exit: [*Rec]) History --------- Turn | Location | Event 10 | -11/Scrapyard | Discovered new exit (range 16) 60 | -11/Scrapyard | Entered Materials 205 | -10/Materials | Discovered new exit (range 12) 230 | -10/Materials | Discovered new exit (range 15) 306 | -10/Materials | Build established: Mutant 560 | -10/Materials | Derelicts attacked the area 756 | -10/Materials | Discovered new exit (range 13) 887 | -10/Materials | Discovered new exit (range 9) 1037 | -10/Materials | Discovered new exit (range 8) 1044 | -10/Materials | Entered Subcaves 1137 | -10/Subcaves | Shifting Twisted Machinery released Sub. Beam Cannon 1139 | -10/Subcaves | Shifting Twisted Machinery released Sub. Laser 1245 | -10/Subcaves | Lost 5 parts (3n1u1w) 1265 | -10/Subcaves | Discovered new exit (range 15) 1268 | -10/Subcaves | Core integrity fell below 50% 1326 | -10/Subcaves | Crushed by falling debris 1326 | -10/Subcaves | Smashed by cave-in Last Messages --------------- 01215_ Flight Unit fries itself beyond repair. 01216_ G-47 Trooper destroyed. 01219_ S-10 Pest destroyed. 01224_ Heat Sink fries itself beyond repair. 01227_ Imp. Heat Sink fries itself beyond repair. 01227_ Acquired Aluminum Leg. 01229_ Ion Engine fries itself beyond repair. 01229_ Sml. Laser fries itself beyond repair. 01229_ Acquired 49 matter. 01231_ Acquired 11 matter. 01233_ Aluminum Leg fries itself beyond repair. 01234_ Particle Gun fries itself beyond repair. 01241_ Acquired Med. Laser. 01249_ Acquired 4 matter. 01265_ EXIT=FOUND 01326_ The unstable cave ceiling collapses. 01326_ Crushed by falling debris. 01326_ Welding Torch destroyed. 01326_ System corrupted by crushing effect (+2). Map ----- +----------------------------------------------------+ | ?????????????????????????????????????????????????? | | ?????????????????????????????????????????????????? | | ?????????????????????????????????????????????????? | | ?????????????????????????????????????????????????? | | ?????????????????????????????????????????????????? | | ?????????????????????????????????????????????????? | | ?????????????????????????????????????????????????? | | ?????????????????????????????????????????????????? | | ?????????????????????????????????????????????????? | | ?????????????????????????????????????????????????# | | ????????????????????????????????????????????????## | | ???????????????????????????????????????????????## | | ???????????????????????????????????????????????# | | ???????????????????????????????????????????????# | | ????????????? ?????????????????????????????????# | | ????????????? ??????????????????????????????????? | | ?????????????? #????????????????????????????????? | | ??????????????? ???????????????????????????????? | | ???????????????? #??????????????????????????????? | | ????????????????? #?????????????????????????????? | | ??????????????????# #????????????????????????????? | | ???????????????????# #???????????????????????????# | | ????????????????????# ####??????????????????????## | | ?????????????????????# # ###????????????????????# | | ????????????????????### # #?????##?????????????# | | ????????????????????# ## @#????#?<#####?????????## | | ?????????????????????# #???""" """"#??????????# | | ?????????????????????## #???? " " "#??????????? | | ??????????????????????# #???? "#??????????# | | ??????????????????????# ##???? #??????????# | | ?????????????????????## #???? #??????????# | | ?????????????????????# ##???? "???????????? | | ???????????????? ????## ####?## #?????????????? | | ???????????????# ## ### #?????????????? | | ??????????????# #?????????????? | | ????????????# ############??? | | ????????????# ## ## #??? | | ???????????# ### #### ##??? | | ???????????? #?###### ##?### ##??? | | ???????????? ??????## #???# #### | | ????????????# ## ### ???????# #?### | | ????????????##??# ??## ??????## ### | | ????????????????# ????# ?###### ## | | ???????????????? ????###?# ### | | ??????????????? ?????????## #?# | | ???????????????????????????## ## ## | | ???????????????????????????## ### # | | ?????????????????????###??## #?# ##### ## | | ????????????????????## #### #?####???# #### | | ????????????????????# %% #????????# ##???# | +----------------------------------------------------+ Best States ------------- Heat Dissipation 25 Energy Generation 10 Energy Capacity 125 Matter Stores 300 Matter Capacity 300 Sight Range 16 Terrain Scan Density 10 Evasion (%) 42 Recoil Reduction 2 Item Schematics ----------------- None Robot Schematics ------------------ None Fabricated ------------ Nothing Repaired ---------- Nothing Studied --------- None Alien Tech Used ----------------- None Achievements -------------- None Challenges ------------ None Game ------ Seed ChipHoverTriangulator Manual? 0 Play Time 00:16:34 Cumulative 21.9 hours Start 2026.03.28 @ 15:55:11 End 2026.03.28 @ 16:09:33 Sessions 1 Manual Loads 0 Difficulty Rogue Special Mode None Game No. 33 Rogue 33 Adventurer 0 Explorer 0 Win Type - Total 0 Types 0/0/0/0/0/0/0/0/0/0 Lore% 15 Gallery% 20 Achievement% 20 Wizard Run 0 Options --------- Layout 1 ASCII 0 Keyboard 0 Movement Mouse Keybinds 0 Fullscreen 1 Font 48/Smallcaps Map View 50x35 Zoom Use 0% Tactical HUD 1 Map Filters NONE Filters NONE Steam 1 RUN: 5831a186-6f16-49e0-9c86-5775f64406ee